Cogmind - Beta 16 @@@ ROGUE MODE // 2025.11.20 @ 11:11:45 // Winter2019/RPGLIKE Player: Jaegerpls Result: Destroyed by G-50 Soldier with Heavy Laser Performance ------------- Evolutions (4) 2000 Regions Visited (6) 1200 Robots Destroyed (78) 390 Value Destroyed (2675) 2675 Prototype IDs (26) 520 Alien Tech Used (0) 0 Bonus (884) 884 TOTAL SCORE: 7669 Bonus ------- High Alert Combat Kills 16 Follower Combat Kills 83 Registered with UFD 300 Met Optimus in HQ 500 Friendly Fire -15 Cogmind --------- Core Integrity 0/800 Matter 300/300 Energy 298/300 System Corruption 0% Temperature Cool (18) Movement Flying (27) Location -6/Factory Parts ------- > --- POWER (2+1) ------ Nuclear Core Light Nuclear Core > --- PROPULSION (4+1) - Flight Unit Flight Unit Flight Unit Flight Unit VTOL Module (+) > --- UTILITY (7+1) ---- Improved Cooling System Weight Redist. System Experimental Terrain Scanner (+) Core Analyzer Weapon Cycler Weapon Cycler Makeshift Hacking Suite Rainbow Chip > --- WEAPON (3+1) ----- Plasma Cutter (+) Flamer Flamer Enhanced Flamer > --- INVENTORY (1) ---- IFF Parser Peak State ------------ > --- POWER ------------ Nuclear Core Light Nuclear Core > --- PROPULSION ------- Flight Unit Flight Unit Flight Unit Flight Unit VTOL Module > --- UTILITY ---------- Improved Cooling System Weight Redist. System Experimental Terrain Scanner Core Analyzer Weapon Cycler Weapon Cycler Makeshift Hacking Suite Rainbow Chip > --- WEAPON ----------- Plasma Cutter Flamer Flamer Enhanced Flamer > --- INVENTORY -------- IFF Parser [Rating: 65] Favorites ----------- Power Light Nuclear Core Engine Ion Engine Power Core Light Nuclear Core Propulsion Flight Unit Treads Light Treads Wheel Subdweller Monowheel Hover Unit Hover Unit Flight Unit Flight Unit Utility Weight Redist. System Device Weight Redist. System Processor Rainbow Chip Hackware Makeshift Hacking Suite Weapon Flamer Energy Gun EM Pulse Gun Energy Cannon Beam Cannon Ballistic Gun Battle Rifle Ballistic Cannon Battle Cannon Launcher Rocket Launcher Special Weapon Flamer Build | -11 -10 -10 -10 -9 -9 -6 ------- Run | Yrd Mat Min Sub Rec Scr Fac Slots Evolved 12 | 4 1 1 3 1 1 1 Power 1 | . . 1 . . . . Propulsion 3 | 1 1 . . 1 . . Utility 6 | 2 . . 2 . 1 1 Weapon 2 | 1 . . 1 . . . Parts Attached 61 | 6 11 1 20 13 5 5 Power 6 | 1 1 1 . 2 1 . Engine 3 | 1 . . . 2 . . Core 3 | . 1 1 . . 1 . Reactor . | . . . . . . . Propulsion 21 | 1 4 . 8 6 1 1 Treads 2 | 1 1 . . . . . Leg . | . . . . . . . Wheel 8 | . . . 8 . . . Hover 3 | . 3 . . . . . Flight 8 | . . . . 6 1 1 Utility 18 | 2 3 . 3 4 3 3 Device 14 | 2 3 . 1 3 3 2 Storage . | . . . . . . . Processor 3 | . . . 1 1 . 1 Hackware 1 | . . . 1 . . . Protection . | . . . . . . . Artifact . | . . . . . . . Weapon 16 | 2 3 . 9 1 . 1 Energy Gun 1 | 1 . . . . . . Energy Cannon 3 | . 2 . . 1 . . Ballistic Gun 5 | 1 . . 4 . . . Ballistic Cannon 1 | . . . 1 . . . Launcher 2 | . 1 . 1 . . . Special Weapon 4 | . . . 3 . . 1 Impact Weapon . | . . . . . . . Slashing Weapon . | . . . . . . . Piercing Weapon . | . . . . . . . Special Melee Weapon . | . . . . . . . Unidentified Prototypes . | . . . . . . . Parts Lost 5 | . . 1 2 2 . . Power 1 | . . . . 1 . . Propulsion 3 | . . 1 2 . . . Utility 1 | . . . . 1 . . Weapon . | . . . . . . . Highest Loss Streak 2 | . . 1 2 1 . . To Critical Strikes . | . . . . . . . Average Backups . | . . 1 . 1 1 . Power . | . . . . . . . Propulsion . | . . . . . . . Utility . | . . . . . . . Weapon . | . . . . 1 . . Tool/Special . | . . . . . . . Unused Backups 2 | . . . . . . 2 Power 1 | . . . . . . 1 Propulsion . | . . . . . . . Utility 1 | . . . . . . 1 Weapon . | . . . . . . . Tool/Special . | . . . . . . . Average Slot Usage (%) 82 | . 93 88 78 75 77 89 Engine 2 | . 10 . . 2 . . Core 9 | . 1 13 13 7 10 10 Wheel 4 | . . . 10 2 . . Hover 7 | . 19 21 5 . . . Flight 7 | . . . . 18 21 20 Device 23 | . 33 32 21 15 16 25 Processor 2 | . . . 2 5 5 6 Hackware 3 | . . . 3 5 5 5 Energy Cannon 6 | . 20 21 3 . . . Ballistic Gun 3 | . . . 10 . . . Ballistic Cannon 1 | . . . 3 . . . Launcher 1 | . 3 . 1 . . . Special Weapon 6 | . . . 1 15 15 20 Peak Build Rating 65 | 8 16 18 43 43 55 65 Average Rating 31 | 4 11 15 31 39 45 60 On Entrance 25 | . 8 16 18 43 39 55 Avg Prop Armor Cover (%) 3 | . . . 3 6 . . Naked Turns . | . . . . . . . Heaviest Build 25 | 11 14 18 22 19 23 25 Greatest Support 66 | 20 40 24 66 22 27 31 Greatest Overweight (x) 2 | . 2 . 2 1 . . Average Overweight (x) . | . . . . . . . Largest Inventory Capacity 1 | 1 1 1 1 1 1 1 Average Capacity 1 | 1 1 1 1 1 1 1 Most Carried 1 | . 1 1 1 1 1 1 Average Carried . | . . . . . . . Final Capacity 1 | 1 1 1 1 1 1 1 Final Carried 1 | . 1 1 1 1 1 1 Class Distribution -------------------- 36% | Scavenger-Skirmisher 26% | Scavenger-Mutant 11% | Hacker-Scout 8% | Commander-Sprinter 5% | Derelict-Sprinter 4% | Mutant Dominant Class ---------------- Scavenger-Mutant | -10/Materials Scavenger-Mutant | -10/Mines Scavenger-Skirmisher | -10/Subcaves Commander-Sprinter | -9/Recycling Derelict-Sprinter | -9/Scraptown Hacker-Scout | -6/Factory Resources | -11 -10 -10 -10 -9 -9 -6 ----------- Run | Yrd Mat Min Sub Rec Scr Fac Matter Collected 1914 | 281 260 10 843 400 30 90 Remotely 194 | 144 50 . . . . . Salvage Created 2364 | 117 660 182 660 634 . 111 Parts 138 | 12 43 8 50 23 . 2 Haulers Intercepted 4 | . 2 . . 2 . . Recyclers Shooed 2 | . . . . 2 . . Parts Field Recycled . | . . . . . . . Retrieved Matter . | . . . . . . . Parts Self-Destructed 8 | . . . 8 . . . Prevented . | . . . . . . . Parts Restored . | . . . . . . . Kills | -11 -10 -10 -10 -9 -9 -6 ------- Run | Yrd Mat Min Sub Rec Scr Fac Combat Hostiles Destroyed 56 | . 16 7 21 5 . 7 Guns 13 | . . . 13 . . . Cannons 36 | . 15 6 8 3 . 4 Classes Destroyed 12 | 2 5 . 2 3 . . Worker 3 | . 2 . . 1 . . Builder 1 | . . . . 1 . . Tunneler 4 | 3 . . . 1 . . Hauler 4 | . 2 . . 2 . . Recycler 7 | 1 . . . 6 . . Watcher 3 | . 3 . . . . . Swarmer 16 | . 4 5 4 . . 3 Grunt 19 | . 12 2 3 . . 2 Sentry 5 | . . . 1 3 . 1 Demolisher 1 | . . . . 1 . . Programmer 2 | . . . . 1 . 1 Subdweller 13 | . . . 13 . . . Best Kill Streak 6 | 3 3 3 3 5 . 6 Combat Bots Only 6 | . 3 3 3 2 . 6 Max Kills in Single Turn 2 | 1 1 1 2 1 . 1 Gunslinging 1 | . . . 1 . . . Exploded . | . . . . . . . Melee . | . . . . . . . Uniques/NPCs Destroyed . | . . . . . . . Combat | -11 -10 -10 -10 -9 -9 -6 -------- Run | Yrd Mat Min Sub Rec Scr Fac Hostile Shots Fired 287 | . 78 36 96 29 . 48 Missed 83 | . 14 6 28 14 . 21 Hits 204 | . 64 30 68 15 . 27 Projectile 204 | . 64 30 68 15 . 27 AOE 4 | . 1 . . 3 . . Critical Strikes 3 | . . 1 . 2 . . Damage Taken 2970 | . 692 283 1253 341 . 401 Core 2408 | . 563 225 1021 276 . 323 Absorbed by Shields . | . . . . . . . Redirected to Core 1903 | . 416 173 811 233 . 270 Regen/Repaired (Parts) 180 | . . . . . 180 . Core Remaining (%) 70 | 100 . . . . 40 . Volleys Fired 331 | 7 96 35 126 54 . 13 Largest 3 | 2 2 2 3 3 . 3 Hottest 280 | 60 120 120 280 280 . 280 Shots Fired 692 | 14 180 70 255 136 . 37 Gun 133 | 14 . . 119 . . . Cannon 379 | . 168 70 128 13 . . Launcher 15 | . 12 . 3 . . . Special 165 | . . . 5 123 . 37 Kinetic 225 | 7 . . 218 . . . Thermal 432 | . 168 70 34 123 . 37 Explosive 15 | . 12 . 3 . . . Electromagnetic 20 | 7 . . . 13 . . Robot Hit Streak 54 | 3 11 5 31 54 . 25 Robot Miss Streak 4 | 1 3 3 4 1 . 1 Penetration Max . | . . . . . . . Secondary Targets 1 | . . . 1 . . . Max Gunslinging Chain 1 | . . . 1 . . . Shots Hit Robots 338 | 7 63 23 123 91 . 31 Core Hits 127 | 5 27 8 42 33 . 12 Critical Kills 1 | . 1 . . . . . Critical Parts Destroyed 1 | . . . 1 . . . Critical Strikes 10 | . 1 . 2 5 . 2 Burn 7 | . . . . 5 . 2 Meltdown 1 | . 1 . . . . . Destroy 2 | . . . 2 . . . Melee Attacks . | . . . . . . . Impact . | . . . . . . . Slashing . | . . . . . . . Piercing . | . . . . . . . Sneak Attacks . | . . . . . . . Combat Hostiles . | . . . . . . . Follow-up Attacks . | . . . . . . . Damage Inflicted 5310 | 117 1186 446 2133 1062 . 366 Guns 1323 | 97 . . 1226 . . . Cannons 2433 | . 1134 402 897 . . . Explosions 116 | 20 52 44 . . . . Melee . | . . . . . . . Ramming . | . . . . . . . Kinetic 1841 | . . . 1841 . . . Thermal 3320 | 20 1134 446 292 1062 . 366 Explosive 52 | . 52 . . . . . Electromagnetic 97 | 97 . . . . . . Impact . | . . . . . . . Slashing . | . . . . . . . Piercing . | . . . . . . . Highest Corruption . | . . . . . . . Average Corruption . | . . . . . . . Corruption Purged . | . . . . . . . Corruption Blocked . | . . . . . . . Overload Shots . | . . . . . . . Overflow Damage 25 | . 8 . . 17 . . Projectiles 23 | . 8 . . 15 . . Explosions 2 | . . . . 2 . . Melee . | . . . . . . . Knockbacks 5 | . . . 5 . . . Impact . | . . . . . . . Kinetic 5 | . . . 5 . . . Secondary . | . . . . . . . Self-Inflicted Damage 37 | . . . . 37 . . Shots 1 | . . . . 1 . . Rammed . | . . . . . . . Targets Rammed . | . . . . . . . Kicked . | . . . . . . . Crushed . | . . . . . . . Highest Temperature 200 | . 84 43 . 200 . 44 Average Temperature 32 | . 10 27 . 44 . 17 Received Heat Transfer 759 | . 225 87 249 99 . 99 Siege Activations . | . . . . . . . Martial Activations . | . . . . . . . Shielding Activations . | . . . . . . . Robots Disrupted 2 | . . . . 1 . 1 Combat Hostiles 1 | . . . . . . 1 Robots Corrupted . | . . . . . . . Combat Hostiles . | . . . . . . . Parts Fried . | . . . . . . . Impact Corruptions . | . . . . . . . Robots Melted 10 | . 1 1 . 5 . 3 Combat Hostiles 9 | . 1 1 . 4 . 3 Parts Melted 36 | . 4 1 3 17 . 11 Heat Transferred 15401 | 50 2368 951 672 8480 . 2880 Parts Sabotaged . | . . . . . . . Parts Stolen . | . . . . . . . Parts Stripped . | . . . . . . . Power Chain Reactions 1 | 1 . . . . . . Alert | -11 -10 -10 -10 -9 -9 -6 ------- Run | Yrd Mat Min Sub Rec Scr Fac Maximum Alert Level 2 | . 2 1 . . . 1 Low Security (%) 79 | 100 59 55 . 100 . 97 Level 1 18 | . 35 44 . . . 2 Level 2 1 | . 4 . . . . . Level 3 . | . . . . . . . Level 4 . | . . . . . . . Level 5 . | . . . . . . . High Security . | . . . . . . . Max Security . | . . . . . . . Peak Influence 477 | 10 477 305 . 168 . 254 Initial 184 | . . 184 . 16 . . Average 97 | 1 173 184 . 18 . 39 Influence Increases 2583 | 20 943 338 180 482 . 620 Destroy 0b10 Robot/C 920 | . 320 180 160 120 . 140 Destroy 0b10 Robot/NC 160 | 20 35 . . 105 . . Destroy Leader 150 | . 60 40 20 . . 30 Allied During Kill 32 | . . 13 . 19 . . Successful Hack 10 | . 5 . . 5 . . Disable Machine 990 | . 315 60 . 210 . 405 Destroy Structure 201 | . 178 15 . 8 . . Partial Spotted 15 | . 15 . . . . . Lose Combat Pursuer 105 | . 15 30 . 15 . 45 Influence Decreases 2329 | 20 470 755 200 518 . 366 Entered New Map 339 | . . 289 30 20 . . Time Decay 1725 | 20 470 416 170 283 . 366 Lost Part 30 | . . 10 . 20 . . Lost Ally 40 | . . 40 . . . . Purge Threat 195 | . . . . 195 . . Squads Dispatched 5 | . 3 . . . . 2 Investigation 2 | . 2 . . . . . Extermination 2 | . . . . . . 2 Reinforcement 1 | . 1 . . . . . Assault . | . . . . . . . Garrison . | . . . . . . . Intercept . | . . . . . . . Searches Triggered . | . . . . . . . Construction Impeded . | . . . . . . . Haulers Reinforced . | . . . . . . . Active Scanning Responses . | . . . . . . . Cargo Convoy Interrupts . | . . . . . . . Stealth | -11 -10 -10 -10 -9 -9 -6 --------- Run | Yrd Mat Min Sub Rec Scr Fac Distress Signals . | . . . . . . . Communications Jammed . | . . . . . . . Distress Signals . | . . . . . . . Times Spotted 78 | . 23 10 24 7 . 14 Peak Tracking Total 8 | . 3 3 6 4 . 8 Tactical Retreats 5 | . 1 1 . 1 . 2 Traps | -11 -10 -10 -10 -9 -9 -6 ------- Run | Yrd Mat Min Sub Rec Scr Fac Traps Triggered 4 | . 2 . 2 . . . Indirectly . | . . . . . . . Trap Hack Attempts . | . . . . . . . Triggered . | . . . . . . . Disarmed . | . . . . . . . Reprogrammed . | . . . . . . . Reused . | . . . . . . . Traps Extracted . | . . . . . . . Installed . | . . . . . . . Triggered . | . . . . . . . Machines | -11 -10 -10 -10 -9 -9 -6 ---------- Run | Yrd Mat Min Sub Rec Scr Fac Machines Disabled 71 | . 24 4 2 14 . 27 Max in Single Turn 2 | . 2 1 1 2 . 1 Garrison Access 1 | . . . . . . 1 Machines Repaired . | . . . . . . . Machines Dismantled 27 | . . . . . . 27 Machines Sabotaged . | . . . . . . . Overloaded Fab Kills . | . . . . . . . Hacking | -11 -10 -10 -10 -9 -9 -6 --------- Run | Yrd Mat Min Sub Rec Scr Fac Machines Accessed 29 | . 9 . 1 12 5 2 Terminals 13 | . 7 . . 6 . . Fabricators 1 | . . . . . . 1 Repair Stations . | . . . . . . . Recycling Units 8 | . 2 . . 6 . . Scanalyzers . | . . . . . . . Garrison Access 1 | . . . . . . 1 Total Hacks 104 | . 24 . 9 37 30 4 Successful 81 | . 13 . 9 27 30 2 Failed 22 | . 11 . . 9 . 2 Catastrophic 2 | . 1 . . 1 . . Database Lockouts 1 | . . . . 1 . . Manual 47 | . 21 . . 26 . . Terminals 45 | . 21 . . 24 . . Fabricators 2 | . . . . . . 2 Repair Stations . | . . . . . . . Recycling Units 16 | . 3 . . 13 . . Scanalyzers . | . . . . . . . Garrison Access 2 | . . . . . . 2 Terminal Hacks 45 | . 1 . 9 5 30 . Record 37 | . . . 8 . 29 . Part Schematic 1 | . . . . 1 . . Robot Analysis 2 | . 1 . . 1 . . Prototype ID Bank 1 | . . . . 1 . . Unreport Threat 2 | . . . . 2 . . Proto ID Catalog 2 | . . . 1 . 1 . Fabricator Hacks 1 | . . . . . . 1 Load Schematic 1 | . . . . . . 1 Repair Station Hacks . | . . . . . . . Recycling Unit Hacks 10 | . 2 . . 8 . . Report Inventory 8 | . 2 . . 6 . . Retrieve Components 2 | . . . . 2 . . Scanalyzer . | . . . . . . . Garrison Access Hacks 1 | . . . . . . 1 Seal Access 1 | . . . . . . 1 Unauthorized Hacks 24 | . 10 . . 14 . . Terminals 18 | . 9 . . 9 . . Botnet 5 | . 2 . . 3 . . Skim 13 | . 7 . . 6 . . Fabricators . | . . . . . . . Repair Stations . | . . . . . . . Recycling Units 6 | . 1 . . 5 . . Reject 6 | . 1 . . 5 . . Scanalyzers . | . . . . . . . Garrison Access . | . . . . . . . Data Cores Recovered . | . . . . . . . Used . | . . . . . . . Hacking Detections 16 | . 7 . . 7 . 2 Full Trace Events . | . . . . . . . Feedback Events . | . . . . . . . Feedback Blocked . | . . . . . . . Robot Schematics Acquired . | . . . . . . . Robots Built . | . . . . . . . Authchips . | . . . . . . . Time . | . . . . . . . Total Robot Build Rating . | . . . . . . . Part Schematics Acquired 1 | . . . . 1 . . Parts Built . | . . . . . . . Authchips . | . . . . . . . Time . | . . . . . . . Total Part Build Rating . | . . . . . . . Part Studies Acquired . | . . . . . . . Parts Repaired . | . . . . . . . Time . | . . . . . . . Parts Recycled . | . . . . . . . Recycled Matter . | . . . . . . . Retrieved Matter . | . . . . . . . Retrieved Components 6 | . . . . 6 . . Parts Scanalyzed . | . . . . . . . Part Schematics Acquired . | . . . . . . . Parts Damaged . | . . . . . . . Bothacking | -11 -10 -10 -10 -9 -9 -6 ------------ Run | Yrd Mat Min Sub Rec Scr Fac Used RIF Installer . | . . . . . . . Robots Hacked . | . . . . . . . Non-combat . | . . . . . . . Combat . | . . . . . . . Robot Hacks Applied . | . . . . . . . Relay Couplers Released . | . . . . . . . Fabnet Peak Effective % . | . . . . . . . Robots Rewired 7 | . . . . 7 . . Allies Hacked . | . . . . . . . Hacks Repelled . | . . . . . . . Allies | -11 -10 -10 -10 -9 -9 -6 -------- Run | Yrd Mat Min Sub Rec Scr Fac Total Allies 9 | . . 2 . 7 . . Largest Group 7 | . . 2 . 7 . . Highest-Rated Group 82 | . . 41 . 82 . . Highest-Rated Ally 31 | . . 31 . 18 . . Total Orders . | . . . . . . . Ally Attacks 8 | . . 6 . 2 . . Total Damage 95 | . . 84 . 11 . . Kills 3 | . . 2 . 1 . . Allies Corrupted . | . . . . . . . Allies Melted . | . . . . . . . Intel | -11 -10 -10 -10 -9 -9 -6 ------- Run | Yrd Mat Min Sub Rec Scr Fac Active Infowar (turns) 9276 | 18 1598 1011 3463 1404 672 1110 Optics 191 | . . . 191 . . . Terrain 9273 | 18 1598 1011 3460 1404 672 1110 Robot Analysis Total 2 | . 1 . . 1 . . Derelict Logs Recovered 5 | . . 3 2 . . . Drone Launches . | . . . . . . . Drone Recoveries . | . . . . . . . Exploration | -11 -10 -10 -10 -9 -9 -6 ------------- Run | Yrd Mat Min Sub Rec Scr Fac Turns Passed 9631 | 122 1598 1011 3463 1654 673 1110 Spaces Moved 6758 | 60 1094 691 1791 1130 1255 737 Core 39 | 3 . . 25 11 . . Treads 180 | 57 123 . . . . . Legs . | . . . . . . . Wheels 1553 | . . . 1402 151 . . Hover 2026 | . 971 691 364 . . . Flight 2960 | . . . . 968 1255 737 Fastest Speed 27 | 50 52 52 56 31 31 27 Average Speed 64 | 154 78 55 107 40 31 30 Slowest Speed 180 | 160 180 56 150 125 31 31 Overloaded Moves . | . . . . . . . Propulsion Burnouts . | . . . . . . . Robots Hopped 7 | . . . . 6 . 1 Potential Cave-ins 2 | . . . 2 . . . Cave-ins Triggered . | . . . . . . . Exploration Rate (%) 70 | 4 99 98 90 99 86 16 Regions Visited 6 Branch Regions 4 Pre-discovered Areas 4 | . . . 2 2 . . Known Exits Taken 1 | . 1 . . . . . Unknown Exits Taken 5 | 1 . 1 1 1 1 . Scrap Searched 14 | . . 2 9 . 3 . Spaces Dug 14 | . 7 . 7 . . . Terrain Destroyed 279 | 4 226 15 30 4 . . Melee . | . . . . . . . Projectile 8 | . . . 8 . . . AOE 271 | 4 226 15 22 4 . . Terrain Rammed . | . . . . . . . Walls Destroyed . | . . . . . . . Machines Disabled . | . . . . . . . Actions | -11 -10 -10 -10 -9 -9 -6 --------- Run | Yrd Mat Min Sub Rec Scr Fac Total 10948 | 72 1650 1245 3120 2097 1537 1227 Wait 3421 | . 410 515 1128 804 273 291 Move 6739 | 59 1093 690 1790 1118 1254 735 Hop 6 | . . . . 5 . 1 Pick Up 8 | . 1 2 1 1 1 2 Fast Attach 53 | 6 9 . 18 12 5 3 Attach 4 | . . 1 2 . . 1 Detach 6 | . 2 . 3 1 . . Swap 15 | . 5 . 5 2 . 3 Drop 39 | . 7 1 15 9 4 3 Fire 331 | 7 96 35 126 54 . 13 Melee . | . . . . . . . Ram . | . . . . . . . Kick . | . . . . . . . Crush . | . . . . . . . Escape Stasis . | . . . . . . . Rewire 74 | . . . . 74 . . Trap . | . . . . . . . Miscellaneous 252 | . 27 1 32 17 . 175 Route ------- -11/Scrapyard -10/Materials (discovered 6 exits: *Mat x3 / *Min x2 / *Sub) -10/Mines (discovered 3 exits: *Mat x2 / *Sub) -10/Subcaves (discovered 3 exits: [*Mat x2] / *Rec) -9/Recycling (discovered 2 exits: [*Fac] / *Scr) -9/Scraptown (discovered 2 exits: *Fac x2) -6/Factory (discovered 2 exits: [Low] / [*Ext]) History --------- Turn | Location | Event 1 | -11/Scrapyard | Upgraded with Propulsion slot (x1) 1 | -11/Scrapyard | Upgraded with Utility slot (x2) 1 | -11/Scrapyard | Upgraded with Weapon slot (x1) 17 | -11/Scrapyard | Discovered new exit (range 16) 123 | -11/Scrapyard | Entered Materials 218 | -10/Materials | Discovered new exit (range 12) 315 | -10/Materials | Build established: Mutant 367 | -10/Materials | Discovered new exit (range 15) 707 | -10/Materials | Build established: Scavenger-Mutant 723 | -10/Materials | Derelicts attacked the area 846 | -10/Materials | Reached level 2 853 | -10/Materials | Discovered new exit (range 12) 1031 | -10/Materials | Discovered new exit (range 16) 1076 | -10/Materials | Upgraded with Propulsion slot (x1) 1177 | -10/Materials | Discovered new exit (range 14) 1283 | -10/Materials | Discovered new exit (range 8) 1494 | -10/Materials | Identified exit to Mines 1494 | -10/Materials | Identified exit to Materials 1524 | -10/Materials | Learned 8 Materials zone layouts 1572 | -10/Materials | Reached level 3 1653 | -10/Materials | Learned Storage stockpile data 1721 | -10/Materials | Entered Mines 1875 | -10/Mines | Reached level 4 1889 | -10/Mines | Learned Materials security intel 2035 | -10/Mines | Discovered exit to Materials (range 16) 2081 | -10/Mines | Discovered new exit (range 8) 2400 | -10/Mines | Received a Rocket Launcher from a helpful Derelict 2410 | -10/Mines | Upgraded with Power slot (x1) 2477 | -10/Mines | Learned 8 Materials zone layouts 2488 | -10/Mines | Discovered exit to Materials (range 12) 2531 | -10/Mines | Found a hidden stash of uninstalled traps 2732 | -10/Mines | Entered Subcaves 2734 | -10/Subcaves | Reached level 5 2943 | -10/Subcaves | Visited 4L-MR0's lab 2955 | -10/Subcaves | Upgraded with Utility slot (x2) 2955 | -10/Subcaves | Upgraded with Weapon slot (x1) 2992 | -10/Subcaves | Learned location of Recycling (-9) 3015 | -10/Subcaves | Discovered new exit (range 16) 3238 | -10/Subcaves | Core integrity fell below 50% 3261 | -10/Subcaves | Build established: Scavenger-Skirmisher 3355 | -10/Subcaves | Learned Materials machine intel 3853 | -10/Subcaves | Core integrity fell below 20% 4102 | -10/Subcaves | Learned location of Zion (-6) 4102 | -10/Subcaves | Met a Zionite searching for "candidates" 4189 | -10/Subcaves | Shifting Twisted Machinery released Battle Cannon 4216 | -10/Subcaves | Shifting Twisted Machinery released Sub. Machine Gun 4306 | -10/Subcaves | Discovered new exit (range 16) 4311 | -10/Subcaves | Ambushed by Subdwellers from Twisted Machinery 4486 | -10/Subcaves | Disturbed a concealed Subdweller 4625 | -10/Subcaves | Curiously followed by a Cobbler waking with a query about "LVR3C" 4776 | -10/Subcaves | Found Rainbow Chip 4778 | -10/Subcaves | Attached Rainbow Chip, gained temporary slots: Power, Propulsion, Utility, Weapon 5528 | -10/Subcaves | Discovered new exit (range 16) 6195 | -10/Subcaves | Entered Recycling 6196 | -9/Recycling | Met a Zionite searching for Scraptown 6197 | -9/Recycling | Reached level 6 6209 | -9/Recycling | Scanned before Scraplab entrance 6226 | -9/Recycling | Discovered new exit (range 12) 6229 | -9/Recycling | Entered Scraplab 6476 | -9/Recycling | Upgraded with Propulsion slot (x1) 6795 | -9/Recycling | Reached level 7 7254 | -9/Recycling | Discovered new exit (range 16) 7324 | -9/Recycling | Build established: Commander-Sprinter 7334 | -9/Recycling | Learned Materials recycling unit intel 7404 | -9/Recycling | Learned Materials emergency access door positions 7465 | -9/Recycling | Learned 2 Materials zone layouts 7517 | -9/Recycling | Learned Materials trap positions 7613 | -9/Recycling | Learned 4 Materials zone layouts 7849 | -9/Recycling | Entered Scraptown 7930 | -9/Scraptown | Discovered new exit (range 10) 7973 | -9/Scraptown | Visited Spacefarers 7994 | -9/Scraptown | Visited CR-KLE's Repair Center 8000 | -9/Scraptown | CR-KLE repaired 12 parts 8019 | -9/Scraptown | Visited IN-MT5's Study 8027 | -9/Scraptown | Heard Great Nut preacher, LISTEN AND RECITE! 8030 | -9/Scraptown | Visited UFD Registry 8030 | -9/Scraptown | Registered with UFD as "Protontank" 8036 | -9/Scraptown | Visited Science Guys 8047 | -9/Scraptown | Visited Curators Association 8053 | -9/Scraptown | Visited Sword Containment 8059 | -9/Scraptown | Visited Infowarlord's Domain 8062 | -9/Scraptown | Found Exp. Terrain Scanner 8157 | -9/Scraptown | Discovered new exit (range 21) 8157 | -9/Scraptown | Visited Research Penetration Think Tank 8199 | -9/Scraptown | Visited Abandonware Association 8203 | -9/Scraptown | Learned abandonware demo "MELTYB.EXE" 8211 | -9/Scraptown | Visited Supply Room 8219 | -9/Scraptown | Visited Modified Component R&D 8235 | -9/Scraptown | Build established: Derelict-Sprinter 8242 | -9/Scraptown | Visited Artisan Demo Area 8262 | -9/Scraptown | Visited Fellowship of the Rings 8481 | -9/Scraptown | Visited Supply Room 8495 | -9/Scraptown | Met Optimus 8495 | -9/Scraptown | Reached level 8 8495 | -9/Scraptown | Accepted into 0bPrime 8506 | -9/Scraptown | Upgraded with Utility slot (x1) 8522 | -9/Scraptown | Entered Factory 8523 | -6/Factory | Core integrity fell below 50% 8524 | -6/Factory | Reached level 9 8856 | -6/Factory | Build established: Hacker-Scout 8982 | -6/Factory | Discovered new exit (range 18) 9247 | -6/Factory | Reached level 10 9250 | -6/Factory | Upgraded with Utility slot (x1) 9547 | -6/Factory | Discovered new exit (range 27) 9594 | -6/Factory | Core integrity fell below 20% 9632 | -6/Factory | Destroyed by G-50 Soldier with Heavy Laser Last Messages --------------- 09594_ Lgt. Nuclear Core melted. 09594_ VTOL Module melted. 09594_ S-27 Virus destroyed. 09596_ G-50 Soldier heat damages Adv. Heat Sink. 09599_ VTOL Module melted. 09599_ S-27 Virus destroyed. 09603_ Melted Carbon-fiber Leg. 09603_ G-50 Soldier critical meltdown. 09603_ Lgt. Angular Momentum Engine melted. 09603_ G-50 Soldier reactivates. 09607_ G-50 Soldier suffers critical hit (Burn). 09607_ Hvy. Laser melted. 09607_ G-50 Soldier destroyed. 09612_ Acquired VTOL Module. 09614_ Acquired 10 matter. 09619_ Dismantling Nuclear Reactor with Plasma Cutter. 09624_ R-10 Processor collects Autogun. 09628_ Melted Shock Rifle. 09629_ P-60 Hacker critical meltdown. 09629_ Mic. Nuclear Core melted. Map ----- +----------------------------------------------------+ | ??????????? ? ???? ?? ????#?? ??? ? ? ??? ?? ????? | | ??????????? ? ??? ??????#?? ? ???#????? ????? | | ???????"??"?"??????????????????????? ?#?? ?????? | | ??????"????"? ??" "????###?#?? ? ????#?? ? ? ??? | | ????????"?""????? "?" ??????#?????#?#???#? ??? ??? | | ??????? ?? ?? ?? ???#####?? #?#???????? ?" "???? | | ????? ??????? ? ? ????#####????#??#??#? ?"?"??? | | ??????? ??? ?? ? ??? ?? ??? ??####?? ? ? ? | | ?? ????##??????#?#?#?#?????"? ?"??#???#??#??#?#??? | | ????#??#?##?#??####????## ??" ""??##????#####?#??? | | ? ?? ? ?? ?? ??? ? #?"?" """ #?##?#?##?#???#? | | ???? ?? ? ? ?? ? +? ? ? ???###?###?????# | | ???? ? ?? ?? ? ?? ? ####?##?###??#?# | | ??#????????#######?## # ############?### | | ????### ?#??? ? # # #?##########?#?? | | #???#?#??## ? # ######################???? | | ?##?#???##? """""" + ############## ####### | | ?###????#?# """""" # ? | | ? ????? + """""" # < | | ????#?### """""" # | | ?? ???? ### # ###+########## ####### | | ?? # ### # # #######+######### | | "???" # ###########?# # """ ## ### | | " ??" # ############? # """ ## ### | | ???"" # # """ ## # # | | ? + #@ %g ## ### | | ???"" # # """ ## """ """ ### | | ??"?" ####+############## """ ## """ """ ### | | ? """ # ? ######### """ ## """ """ ### | | ? # "" ######### ## ### | | ?+##### T" ######### ## """ """ ### | | + "" ######### ## """ """ ### | | # ######### /! ## """ """ ### | | + ##### w /! ## ### | | ### ##### ### !* ################# | | ### ##### ### ################# | | ################# ### % ################# | | ##################### % % ################# | | """" ## # %%%[ ################# | | ""F" ## """"""" ### #+#################### | | ? "" ## """"""" #####%#################### | | ## """"""" ##### #################### | | """" ? ## """"""" #####%#################### | | """" ## ##### #################### | | """" ## """"""" ##### #################### | | """" ## """"""" #####+#################### | | """" ## """"""" ## ################# | | """" + """"""" ## """" ################# | | ## ##! """" ################# | | """" ## ## """" ################# | +----------------------------------------------------+ Best States ------------- Heat Dissipation 88 Energy Generation 28 Energy Capacity 300 Matter Stores 300 Matter Capacity 300 Sight Range 21 Robot Scan Range 14 Terrain Scan Range 30 Terrain Scan Density 310 Additional Mass Support 6 Weapon Cycling 30 Evasion (%) 71 Target Analysis 5 Core Analysis 6 Recoil Reduction 2 Offensive Hacking 21 Defensive Hacking 10 Item Schematics ----------------- Lgt. Nuclear Core | -9/Recycling | Hacked Robot Schematics ------------------ None Fabricated ------------ Nothing Repaired ---------- Nothing Studied --------- None Alien Tech Used ----------------- None Achievements -------------- None Challenges ------------ None RPGLIKE | -11 -10 -10 -10 -9 -9 -6 --------- Run | Yrd Mat Min Sub Rec Scr Fac Levels Raised 9 | . 2 1 1 2 1 2 XP Earned 17918 | 3000 3433 1924 1620 2666 900 4375 XP Spent 16455 | 2990 1100 500 4360 1500 3030 2975 Upgrades 41 | 11 2 1 9 3 7 8 Power Slot 1 | . . 1 . . . . Propulsion Slot 3 | 1 1 . . 1 . . Utility Slot 6 | 2 . . 2 . 1 1 Weapon Slot 2 | 1 . . 1 . . . Core Integrity 4 | . . . 4 . . . Heat Dissipation 6 | 2 . . . . 3 1 Energy Generation 1 | . 1 . . . . . Mass Support 1 | . . . . . 1 . Inventory Capacity 1 | 1 . . . . . . Sensor Range 7 | 1 . . . . . 6 Terrain Scan Density 3 | 3 . . . . . . Ranged Accuracy 2 | . . . 2 . . . Hack Attack % 2 | . . . . 1 1 . Hack Defense % 2 | . . . . 1 1 . Protomatter Created 723 | . 209 25 318 131 . 40 Integrity Restored 1625 | . 548 24 690 363 . . Core 1605 | . 528 24 690 363 . . Parts 20 | . 20 . . . . . Protomatter Decayed 41 | . 2 . 34 5 . . Game ------ Seed SkeletonLightFacilitator Manual? 0 Play Time 02:00:04 Cumulative 108.0 hours Start 2025.11.19 @ 22:47:43 End 2025.11.20 @ 11:11:45 Sessions 2 Manual Loads 0 Difficulty Rogue Special Mode Winter2019/RPGLIKE Game No. 88 Rogue 88 Adventurer 0 Explorer 0 Win Type - Total 0 Types 0/0/0/0/0/0/0/0/0/0 Lore% 62 Gallery% 41 Achievement% 40 Wizard Run 0 Options --------- Layout 0 ASCII 0 Keyboard 0 Movement Mouse Keybinds 0 Fullscreen 2 Font 24/Smallcaps Map View 76x50 Zoom Use 0% Tactical HUD 1 Map Filters NONE Filters NONE Steam 1 RUN: f0eaa8fc-5455-426f-9810-21c73b0f29e4